[Event "*** Qualifier 3: Titled Tuesday 3|2 Blitz"]
[Site "Chess.com"]
[Date "2017.04.18"]
[Round "5"]
[White "Spartakus1975"]
[Black "iturrizaga"]
[Result "0-1"]
[WhiteElo "2566"]
[BlackElo "2649"]
[TimeControl "180+2"]
[EndTime "14:07:06 PDT"]
[Termination "iturrizaga won by resignation"]

1. e4 {[%clk 0:02:58.8]} 1... c5 {[%clk 0:03:01.1]} 2. c3 {[%clk 0:02:59.7]}
2... Nf6 {[%clk 0:03:01.7]} 3. e5 {[%clk 0:03:01]} 3... Nd5 {[%clk 0:03:03.3]}
4. Nf3 {[%clk 0:03:02]} 4... g6 {[%clk 0:03:04.2]} 5. d4 {[%clk 0:02:54.4]} 5...
cxd4 {[%clk 0:03:06.1]} 6. Qxd4 {[%clk 0:02:55.3]} 6... Nc7 {[%clk 0:03:06.5]}
7. Qh4 {[%clk 0:02:55.2]} 7... Nc6 {[%clk 0:03:02.2]} 8. Bh6 {[%clk 0:02:50.5]}
8... Bxh6 {[%clk 0:02:57.7]} 9. Qxh6 {[%clk 0:02:50.5]} 9... Ne6 {[%clk
0:02:59.6]} 10. Bc4 {[%clk 0:02:41.3]} 10... d5 {[%clk 0:02:55]} 11. exd6 {[%clk
0:02:36.2]} 11... Qxd6 {[%clk 0:02:55.7]} 12. Na3 {[%clk 0:02:33.2]} 12... Ne5
{[%clk 0:02:32.1]} 13. Bb5+ {[%clk 0:02:24.4]} 13... Bd7 {[%clk 0:02:33.5]} 14.
Bxd7+ {[%clk 0:02:22.2]} 14... Nxd7 {[%clk 0:02:35.4]} 15. O-O {[%clk
0:02:10.8]} 15... O-O-O {[%clk 0:02:21.6]} 16. Rad1 {[%clk 0:02:08.2]} 16... Qc5
{[%clk 0:02:14.6]} 17. b4 {[%clk 0:01:57.4]} 17... Qc6 {[%clk 0:01:55.2]} 18. c4
{[%clk 0:01:47.5]} 18... Kb8 {[%clk 0:01:47.1]} 19. Rc1 {[%clk 0:01:29.8]} 19...
Qd6 {[%clk 0:01:38.9]} 20. Qe3 {[%clk 0:01:13.2]} 20... Qxb4 {[%clk 0:01:35.8]}
21. Nb5 {[%clk 0:01:04]} 21... Qc5 {[%clk 0:01:35.6]} 22. Qb3 {[%clk 0:01:01.8]}
22... Nb6 {[%clk 0:01:17.6]} 23. a4 {[%clk 0:01:01.6]} 23... a6 {[%clk
0:01:05.3]} 24. a5 {[%clk 0:00:54.1]} 24... Nc8 {[%clk 0:00:57.9]} 25. Rfe1
{[%clk 0:00:22.3]} 25... axb5 {[%clk 0:00:52.8]} 26. cxb5 {[%clk 0:00:23.3]}
26... Qd5 {[%clk 0:00:53.2]} 27. Qb2 {[%clk 0:00:21.8]} 27... Nd6 {[%clk
0:00:46.3]} 28. a6 {[%clk 0:00:19.1]} 28... Qxb5 {[%clk 0:00:38.1]} 29. Qc3
{[%clk 0:00:10.7]} 29... Rc8 {[%clk 0:00:36.8]} 30. a7+ {[%clk 0:00:10.5]} 30...
Ka8 {[%clk 0:00:36.3]} 31. Qe3 {[%clk 0:00:11.3]} 31... Rxc1 {[%clk 0:00:36.7]}
32. Rxc1 {[%clk 0:00:12.4]} 32... Rc8 {[%clk 0:00:37.3]} 33. Rxc8+ {[%clk
0:00:11.7]} 33... Nxc8 {[%clk 0:00:37.9]} 34. h3 {[%clk 0:00:13.6]} 34... Qb1+
{[%clk 0:00:37.5]} 35. Kh2 {[%clk 0:00:14.1]} 35... Qb6 {[%clk 0:00:39]} 36. Qc3
{[%clk 0:00:12.7]} 36... Qc7+ {[%clk 0:00:40]} 37. Qxc7 {[%clk 0:00:12.5]} 37...
Nxc7 {[%clk 0:00:41.9]} 38. Ne5 {[%clk 0:00:14]} 38... Nd6 {[%clk 0:00:43.2]}
39. h4 {[%clk 0:00:13.4]} 39... Kxa7 {[%clk 0:00:44.3]} 40. g4 {[%clk
0:00:14.5]} 40... b5 {[%clk 0:00:45.4]} 41. Kg3 {[%clk 0:00:15.8]} 41... Kb6
{[%clk 0:00:46.6]} 42. Kf4 {[%clk 0:00:17.2]} 42... Ne6+ {[%clk 0:00:47.9]} 43.
Ke3 {[%clk 0:00:17.6]} 43... Nc4+ {[%clk 0:00:49.2]} 0-1

[Event "*** Qualifier 3: Titled Tuesday 3|2 Blitz"]
[Site "Chess.com"]
[Date "2017.04.18"]
[Round "5"]
[White "BogdanDeac"]
[Black "Paralinch"]
[Result "1-0"]
[WhiteElo "2536"]
[BlackElo "2677"]
[TimeControl "180+2"]
[EndTime "14:07:14 PDT"]
[Termination "BogdanDeac won by resignation"]

1. d4 {[%clk 0:03:02]} 1... d5 {[%clk 0:02:58.8]} 2. c4 {[%clk 0:03:01.9]} 2...
dxc4 {[%clk 0:03:00.7]} 3. Nf3 {[%clk 0:03:01]} 3... Nf6 {[%clk 0:03:01.6]} 4.
e3 {[%clk 0:03:02]} 4... e6 {[%clk 0:03:03.1]} 5. Bxc4 {[%clk 0:03:02.9]} 5...
c5 {[%clk 0:03:04.7]} 6. O-O {[%clk 0:03:04.1]} 6... a6 {[%clk 0:03:06.3]} 7.
dxc5 {[%clk 0:03:05.1]} 7... Bxc5 {[%clk 0:03:08.2]} 8. Qxd8+ {[%clk 0:03:05]}
8... Kxd8 {[%clk 0:03:10.1]} 9. Rd1+ {[%clk 0:03:06]} 9... Ke7 {[%clk
0:03:11.2]} 10. Nbd2 {[%clk 0:03:01]} 10... Rd8 {[%clk 0:03:11.2]} 11. Be2
{[%clk 0:03:01.4]} 11... Bd7 {[%clk 0:03:09.9]} 12. Nb3 {[%clk 0:03:01.9]} 12...
Bb6 {[%clk 0:03:09]} 13. Ne5 {[%clk 0:03:00]} 13... Nc6 {[%clk 0:03:01.7]} 14.
Nxd7 {[%clk 0:02:49.3]} 14... Rxd7 {[%clk 0:03:02.5]} 15. Rxd7+ {[%clk
0:02:46.2]} 15... Nxd7 {[%clk 0:03:04.4]} 16. Bd2 {[%clk 0:02:47]} 16... Nde5
{[%clk 0:03:05.3]} 17. Bc3 {[%clk 0:02:46.6]} 17... f6 {[%clk 0:03:02.6]} 18.
Kf1 {[%clk 0:02:47.2]} 18... Rd8 {[%clk 0:03:03]} 19. Rd1 {[%clk 0:02:45.6]}
19... Rxd1+ {[%clk 0:03:03]} 20. Bxd1 {[%clk 0:02:46.4]} 20... Nc4 {[%clk
0:03:04.3]} 21. Be2 {[%clk 0:02:42.2]} 21... Nd6 {[%clk 0:03:04.9]} 22. Bf3
{[%clk 0:02:42.8]} 22... Kd7 {[%clk 0:03:04.7]} 23. Ke2 {[%clk 0:02:40.9]} 23...
Ba7 {[%clk 0:03:00]} 24. Kd3 {[%clk 0:02:29]} 24... b5 {[%clk 0:02:59.4]} 25. a3
{[%clk 0:02:30]} 25... Nf7 {[%clk 0:02:56.7]} 26. Kc2 {[%clk 0:02:16.7]} 26...
Kc7 {[%clk 0:02:53.6]} 27. Na5 {[%clk 0:02:11.7]} 27... Nfe5 {[%clk 0:02:44.3]}
28. Nxc6 {[%clk 0:02:03.1]} 28... Nxc6 {[%clk 0:02:45]} 29. Kb3 {[%clk
0:01:55.8]} 29... Kd6 {[%clk 0:02:45.5]} 30. a4 {[%clk 0:01:54.4]} 30... bxa4+
{[%clk 0:02:41.5]} 31. Kxa4 {[%clk 0:01:53.3]} 31... Kc7 {[%clk 0:02:43]} 32.
Be2 {[%clk 0:01:49.3]} 32... Kb7 {[%clk 0:02:43.2]} 33. Bc4 {[%clk 0:01:50]}
33... e5 {[%clk 0:02:40.8]} 34. Bg8 {[%clk 0:01:49.7]} 34... h6 {[%clk
0:02:41.5]} 35. Bd5 {[%clk 0:01:50.4]} 35... Kc7 {[%clk 0:02:42.2]} 36. g3
{[%clk 0:01:35.8]} 36... Bb6 {[%clk 0:02:42.9]} 37. Bc4 {[%clk 0:01:32.6]} 37...
Kb7 {[%clk 0:02:43.9]} 38. Bd5 {[%clk 0:01:32.6]} 38... Kc7 {[%clk 0:02:44.9]}
39. Be4 {[%clk 0:01:31.7]} 39... Kb7 {[%clk 0:02:36.8]} 40. Kb3 {[%clk
0:01:19.2]} 40... Kc7 {[%clk 0:02:37.5]} 41. Bd3 {[%clk 0:01:20.1]} 41... Kb7
{[%clk 0:02:37.2]} 42. Kc4 {[%clk 0:01:19.2]} 42... a5 {[%clk 0:02:25.7]} 43.
Be4 {[%clk 0:01:05.8]} 43... Kc7 {[%clk 0:02:26.7]} 44. Kd5 {[%clk 0:01:04.6]}
44... Nd8 {[%clk 0:02:14.9]} 45. Bf5 {[%clk 0:01:04.9]} 45... Nf7 {[%clk
0:02:04.9]} 46. h4 {[%clk 0:00:52.9]} 46... Nd6 {[%clk 0:02:04.8]} 47. Bg4
{[%clk 0:00:50.2]} 47... Nf7 {[%clk 0:01:47.3]} 48. Ke6 {[%clk 0:00:47.7]} 48...
Nd8+ {[%clk 0:01:48.5]} 49. Ke7 {[%clk 0:00:46.4]} 49... Bc5+ {[%clk 0:01:49.8]}
50. Ke8 {[%clk 0:00:47.2]} 50... Bb4 {[%clk 0:01:45.4]} 51. Bxb4 {[%clk
0:00:46.5]} 51... axb4 {[%clk 0:01:47.3]} 52. Kf8 {[%clk 0:00:47.5]} 52... Kd6
{[%clk 0:01:46.4]} 53. Kxg7 {[%clk 0:00:48.2]} 53... Ke7 {[%clk 0:01:48.3]} 54.
Kxh6 {[%clk 0:00:49.3]} 54... Nb7 {[%clk 0:01:45.6]} 55. Kg7 {[%clk 0:00:48.2]}
55... Nd6 {[%clk 0:01:44.3]} 56. h5 {[%clk 0:00:48.4]} 56... f5 {[%clk
0:01:45.8]} 57. Bh3 {[%clk 0:00:44.1]} 57... f4 {[%clk 0:01:41]} 58. exf4 {[%clk
0:00:44.4]} 58... exf4 {[%clk 0:01:42.9]} 59. g4 {[%clk 0:00:45.6]} 59... Ne4
{[%clk 0:01:39.4]} 60. h6 {[%clk 0:00:45.6]} 60... Nxf2 {[%clk 0:01:40.5]} 61.
h7 {[%clk 0:00:46]} 61... Nxh3 {[%clk 0:01:41.8]} 62. h8=Q {[%clk 0:00:46.5]}
1-0

[Event "*** Qualifier 3: Titled Tuesday 3|2 Blitz"]
[Site "Chess.com"]
[Date "2017.04.18"]
[Round "5"]
[White "woodhy"]
[Black "GrigorGrigorov"]
[Result "0-1"]
[WhiteElo "2318"]
[BlackElo "2479"]
[TimeControl "180+2"]
[EndTime "14:07:22 PDT"]
[Termination "GrigorGrigorov won by resignation"]

1. e4 {[%clk 0:03:02]} 1... g6 {[%clk 0:02:58.8]} 2. d4 {[%clk 0:03:02.9]} 2...
Bg7 {[%clk 0:02:59.4]} 3. Nf3 {[%clk 0:03:04.2]} 3... d6 {[%clk 0:03:00]} 4. Nc3
{[%clk 0:03:00.8]} 4... Nf6 {[%clk 0:03:00.5]} 5. h3 {[%clk 0:03:00.5]} 5... O-O
{[%clk 0:03:00.5]} 6. Be3 {[%clk 0:03:01.8]} 6... c6 {[%clk 0:03:00.5]} 7. Qd2
{[%clk 0:03:01.4]} 7... Nbd7 {[%clk 0:03:01.1]} 8. Bd3 {[%clk 0:03:02.1]} 8...
e5 {[%clk 0:03:01.8]} 9. Ne2 {[%clk 0:03:02.7]} 9... d5 {[%clk 0:02:55.4]} 10.
dxe5 {[%clk 0:02:01.1]} 10... Nxe4 {[%clk 0:02:54.2]} 11. Bxe4 {[%clk
0:01:57.7]} 11... dxe4 {[%clk 0:02:54.9]} 12. Ng5 {[%clk 0:01:46.5]} 12... Nxe5
{[%clk 0:02:54.2]} 13. Nxe4 {[%clk 0:01:40.8]} 13... Nc4 {[%clk 0:02:52.9]} 14.
Qxd8 {[%clk 0:01:26.3]} 14... Rxd8 {[%clk 0:02:53.3]} 15. Bg5 {[%clk 0:01:27.4]}
15... Re8 {[%clk 0:02:49.3]} 16. Nf6+ {[%clk 0:01:26.7]} 16... Bxf6 {[%clk
0:02:50.6]} 17. Bxf6 {[%clk 0:01:28.6]} 17... Bf5 {[%clk 0:02:50.6]} 18. Rc1
{[%clk 0:01:20.5]} 18... Re6 {[%clk 0:02:47.2]} 19. b3 {[%clk 0:00:59.5]} 19...
Rae8 {[%clk 0:02:07.7]} 20. bxc4 {[%clk 0:00:42.3]} 20... Rxf6 {[%clk
0:02:07.1]} 21. Kf1 {[%clk 0:00:42.5]} 21... Rd6 {[%clk 0:02:04.5]} 22. Ng3
{[%clk 0:00:15.3]} 22... Bxc2 {[%clk 0:02:00.1]} 23. Kg1 {[%clk 0:00:12.6]}
23... Rd2 {[%clk 0:01:59.4]} 24. Kh2 {[%clk 0:00:11.9]} 24... Rxf2 {[%clk
0:01:57.7]} 25. Rhf1 {[%clk 0:00:13.4]} 25... Rxf1 {[%clk 0:01:57]} 26. Rxf1
{[%clk 0:00:15.3]} 26... Bd3 {[%clk 0:01:49.6]} 27. Rf4 {[%clk 0:00:16.4]} 27...
c5 {[%clk 0:01:47.1]} 28. a3 {[%clk 0:00:17.3]} 28... f5 {[%clk 0:01:47.5]} 29.
h4 {[%clk 0:00:18.2]} 29... Kg7 {[%clk 0:01:47.2]} 30. Kg1 {[%clk 0:00:19]}
30... a6 {[%clk 0:01:42.5]} 31. Kf2 {[%clk 0:00:20]} 31... b5 {[%clk 0:01:43.6]}
32. cxb5 {[%clk 0:00:21.9]} 32... axb5 {[%clk 0:01:45]} 33. h5 {[%clk
0:00:21.1]} 33... c4 {[%clk 0:01:45.5]} 34. hxg6 {[%clk 0:00:22.4]} 34... hxg6
{[%clk 0:01:45.9]} 35. Rd4 {[%clk 0:00:24.1]} 35... Kf6 {[%clk 0:01:36.4]} 36.
Rd6+ {[%clk 0:00:24.9]} 36... Re6 {[%clk 0:01:36.9]} 37. Rd5 {[%clk 0:00:25.6]}
37... f4 {[%clk 0:01:34.1]} 38. Nh1 {[%clk 0:00:23]} 38... Re2+ {[%clk
0:01:27.4]} 39. Kf3 {[%clk 0:00:24.2]} 39... Be4+ {[%clk 0:01:26.4]} 40. Kxe2
{[%clk 0:00:25.4]} 40... Bxd5 {[%clk 0:01:27.9]} 41. Nf2 {[%clk 0:00:25.1]}
41... Bxg2 {[%clk 0:01:27.7]} 42. Nd1 {[%clk 0:00:26.5]} 42... Kf5 {[%clk
0:01:25.4]} 43. Nc3 {[%clk 0:00:28.4]} 43... Bc6 {[%clk 0:01:25.9]} 44. Kf2
{[%clk 0:00:29.7]} 44... g5 {[%clk 0:01:26.1]} 45. Ne2 {[%clk 0:00:31.6]} 45...
Ke5 {[%clk 0:01:25.4]} 46. Ng1 {[%clk 0:00:31.5]} 46... g4 {[%clk 0:01:26.2]}
47. Ne2 {[%clk 0:00:32.7]} 47... g3+ {[%clk 0:01:25.9]} 48. Ke1 {[%clk
0:00:31.1]} 48... Ke4 {[%clk 0:01:24.5]} 49. Kd2 {[%clk 0:00:32.3]} 49... g2
{[%clk 0:01:21.1]} 50. Kc3 {[%clk 0:00:32.1]} 50... Ke3 {[%clk 0:01:21.2]} 51.
Nd4 {[%clk 0:00:31.2]} 51... Bd7 {[%clk 0:01:18.1]} 52. Nc2+ {[%clk 0:00:30.6]}
52... Kf2 {[%clk 0:01:19.1]} 53. a4 {[%clk 0:00:30.5]} 53... bxa4 {[%clk
0:01:19.7]} 54. Kxc4 {[%clk 0:00:31.6]} 54... g1=Q {[%clk 0:01:20.9]} 55. Nd4
{[%clk 0:00:32.5]} 55... Qc1+ {[%clk 0:01:21.1]} 56. Kd3 {[%clk 0:00:33.5]}
56... Bf5+ {[%clk 0:01:20.6]} 57. Nxf5 {[%clk 0:00:32.3]} 57... Qb1+ {[%clk
0:01:21.8]} 58. Kd2 {[%clk 0:00:33.6]} 58... Qxf5 {[%clk 0:01:22.4]} 59. Kc3
{[%clk 0:00:35.5]} 0-1

[Event "*** Qualifier 3: Titled Tuesday 3|2 Blitz"]
[Site "Chess.com"]
[Date "2017.04.18"]
[Round "5"]
[White "mwpchess"]
[Black "Infernal_XaM"]
[Result "1/2-1/2"]
[WhiteElo "2400"]
[BlackElo "2692"]
[TimeControl "180+2"]
[EndTime "14:07:34 PDT"]
[Termination "Game drawn by agreement"]

1. c4 {[%clk 0:03:02]} 1... b6 {[%clk 0:03:01.1]} 2. e4 {[%clk 0:03:00.8]} 2...
e5 {[%clk 0:03:01.5]} 3. g3 {[%clk 0:02:56.6]} 3... Nf6 {[%clk 0:03:01.4]} 4.
Bg2 {[%clk 0:02:57.4]} 4... Bb7 {[%clk 0:03:03]} 5. d3 {[%clk 0:02:53.4]} 5...
Nc6 {[%clk 0:03:03.8]} 6. Ne2 {[%clk 0:02:52.9]} 6... Bb4+ {[%clk 0:03:04.1]} 7.
Nbc3 {[%clk 0:02:52.3]} 7... h5 {[%clk 0:03:04.5]} 8. h3 {[%clk 0:02:51.6]} 8...
h4 {[%clk 0:03:02.7]} 9. g4 {[%clk 0:02:51.8]} 9... Bxc3+ {[%clk 0:03:03.8]} 10.
bxc3 {[%clk 0:02:49.2]} 10... d6 {[%clk 0:03:01.8]} 11. f4 {[%clk 0:02:48.2]}
11... Nd7 {[%clk 0:03:02.1]} 12. f5 {[%clk 0:02:47.4]} 12... g5 {[%clk 0:03:01]}
13. O-O {[%clk 0:02:30.9]} 13... f6 {[%clk 0:02:59.9]} 14. a4 {[%clk 0:02:29.3]}
14... Qe7 {[%clk 0:02:59.1]} 15. Be3 {[%clk 0:02:29.2]} 15... Na5 {[%clk
0:02:59.8]} 16. Nc1 {[%clk 0:02:28.7]} 16... O-O {[%clk 0:02:40.4]} 17. Nb3
{[%clk 0:02:28.1]} 17... Nxb3 {[%clk 0:02:23.2]} 18. Qxb3 {[%clk 0:02:28.1]}
18... Nc5 {[%clk 0:02:21.4]} 19. Bxc5 {[%clk 0:02:19.8]} 19... dxc5 {[%clk
0:02:22.1]} 20. a5 {[%clk 0:02:19.6]} 20... Rfd8 {[%clk 0:02:22.4]} 21. Rfd1
{[%clk 0:02:16.7]} 21... Rd6 {[%clk 0:02:23.1]} 22. a6 {[%clk 0:02:07.7]} 22...
Bc6 {[%clk 0:02:23.3]} 23. Bf1 {[%clk 0:02:05.8]} 23... Kg7 {[%clk 0:02:23.9]}
24. Be2 {[%clk 0:02:06.3]} 24... Rad8 {[%clk 0:02:24.8]} 25. Kf2 {[%clk
0:02:04.8]} 25... Be8 {[%clk 0:02:25.8]} 26. Rd2 {[%clk 0:01:58.8]} 26... Bf7
{[%clk 0:02:27.7]} 27. Rad1 {[%clk 0:01:32.2]} 27... Qd7 {[%clk 0:02:26.4]} 28.
Ke1 {[%clk 0:01:28.5]} 28... c6 {[%clk 0:02:23.7]} 29. Qa3 {[%clk 0:01:26.1]}
29... Qe7 {[%clk 0:02:15]} 30. Qb2 {[%clk 0:01:09.8]} 30... Qd7 {[%clk
0:02:13.3]} 31. Bf1 {[%clk 0:01:08.6]} 31... b5 {[%clk 0:02:12]} 32. cxb5 {[%clk
0:01:08.3]} 32... cxb5 {[%clk 0:02:13.2]} 33. d4 {[%clk 0:00:59.5]} 33... exd4
{[%clk 0:01:58.5]} 34. cxd4 {[%clk 0:00:59.2]} 34... cxd4 {[%clk 0:01:59.2]} 35.
Qxb5 {[%clk 0:00:51.2]} 35... Qe7 {[%clk 0:01:58.5]} 36. Bd3 {[%clk 0:00:50.8]}
36... Rb6 {[%clk 0:01:57.5]} 37. Qa5 {[%clk 0:00:39.8]} 37... Rd5 {[%clk
0:01:56.6]} 38. Qa4 {[%clk 0:00:32.9]} 38... Qe5 {[%clk 0:01:56.8]} 39. Kf1
{[%clk 0:00:28.8]} 39... Ra5 {[%clk 0:01:56]} 40. Qd7 {[%clk 0:00:28.4]} 40...
Ra4 {[%clk 0:01:12.1]} 41. Qxa4 {[%clk 0:00:26.8]} 41... Qg3 {[%clk 0:01:11.2]}
42. Qd7 {[%clk 0:00:24.7]} 42... Qxh3+ {[%clk 0:01:10.5]} 43. Ke1 {[%clk
0:00:24.5]} 43... Qg3+ {[%clk 0:01:05.8]} 44. Kf1 {[%clk 0:00:24.9]} 44... Qf3+
{[%clk 0:01:01.2]} 45. Ke1 {[%clk 0:00:25.6]} 45... Qg3+ {[%clk 0:01:00.5]} 46.
Kf1 {[%clk 0:00:26]} 1/2-1/2

[Event "*** Qualifier 3: Titled Tuesday 3|2 Blitz"]
[Site "Chess.com"]
[Date "2017.04.18"]
[Round "5"]
[White "tigra"]
[Black "GulamaliRises"]
[Result "1-0"]
[WhiteElo "2614"]
[BlackElo "2452"]
[TimeControl "180+2"]
[EndTime "14:07:38 PDT"]
[Termination "tigra won by resignation"]

1. e4 {[%clk 0:03:01.9]} 1... c5 {[%clk 0:02:59.8]} 2. Nf3 {[%clk 0:03:03]} 2...
d6 {[%clk 0:03:01.3]} 3. d4 {[%clk 0:03:04.5]} 3... cxd4 {[%clk 0:03:03.2]} 4.
Nxd4 {[%clk 0:03:06.4]} 4... Nf6 {[%clk 0:03:04.7]} 5. Nc3 {[%clk 0:03:08]} 5...
a6 {[%clk 0:03:05.8]} 6. Bg5 {[%clk 0:03:09.6]} 6... Nbd7 {[%clk 0:03:06.4]} 7.
Qe2 {[%clk 0:03:09.6]} 7... h6 {[%clk 0:02:59.1]} 8. Bh4 {[%clk 0:03:09.3]} 8...
g6 {[%clk 0:02:56.6]} 9. f4 {[%clk 0:03:08.4]} 9... e5 {[%clk 0:02:56.6]} 10.
O-O-O {[%clk 0:03:00.3]} 10... Be7 {[%clk 0:02:53.1]} 11. fxe5 {[%clk
0:02:54.9]} 11... dxe5 {[%clk 0:02:53.9]} 12. Nf3 {[%clk 0:02:55.6]} 12... Qc7
{[%clk 0:02:46.2]} 13. Qc4 {[%clk 0:02:55.9]} 13... Qb8 {[%clk 0:02:39.6]} 14.
Bxf6 {[%clk 0:02:43.9]} 14... Nxf6 {[%clk 0:02:37]} 15. Nd5 {[%clk 0:02:30.8]}
15... Nxd5 {[%clk 0:02:36]} 16. Qxd5 {[%clk 0:01:48]} 16... Bf6 {[%clk
0:02:29.3]} 17. Bc4 {[%clk 0:01:47.7]} 17... Be6 {[%clk 0:01:51.3]} 18. Qd3
{[%clk 0:01:47.7]} 18... Bxc4 {[%clk 0:01:51.9]} 19. Qxc4 {[%clk 0:01:48.6]}
19... O-O {[%clk 0:01:52.5]} 20. Rd7 {[%clk 0:01:44.8]} 20... b5 {[%clk
0:01:27.1]} 21. Qc6 {[%clk 0:01:44.3]} 21... Bg7 {[%clk 0:01:28.2]} 22. Qd5
{[%clk 0:01:40.4]} 22... b4 {[%clk 0:01:14.1]} 23. Rb7 {[%clk 0:01:35.4]} 23...
Qc8 {[%clk 0:01:11.8]} 24. Rf1 {[%clk 0:01:07]} 24... Rb8 {[%clk 0:01:00.2]} 25.
Rxb8 {[%clk 0:00:19]} 25... Qxb8 {[%clk 0:01:01]} 26. Rd1 {[%clk 0:00:20.2]}
26... Qb6 {[%clk 0:00:47.2]} 27. Rd2 {[%clk 0:00:19]} 27... Qe3 {[%clk
0:00:46.5]} 28. Kd1 {[%clk 0:00:19.7]} 28... g5 {[%clk 0:00:42.9]} 29. Qd3
{[%clk 0:00:20.6]} 29... Qf4 {[%clk 0:00:43.6]} 30. g3 {[%clk 0:00:20.6]} 30...
Qg4 {[%clk 0:00:44.7]} 31. Qe2 {[%clk 0:00:21.8]} 31... Qe6 {[%clk 0:00:45]} 32.
b3 {[%clk 0:00:22.4]} 32... a5 {[%clk 0:00:42.5]} 33. Rd5 {[%clk 0:00:23.2]}
33... a4 {[%clk 0:00:43.6]} 34. bxa4 {[%clk 0:00:23.6]} 34... f5 {[%clk
0:00:40.3]} 35. Nd2 {[%clk 0:00:24.6]} 35... f4 {[%clk 0:00:39.8]} 36. a5 {[%clk
0:00:25.6]} 36... g4 {[%clk 0:00:36.8]} 37. a6 {[%clk 0:00:25]} 37... f3 {[%clk
0:00:37.6]} 38. Qc4 {[%clk 0:00:25.9]} 38... f2 {[%clk 0:00:38.2]} 39. Ke2
{[%clk 0:00:26.2]} 39... Qf7 {[%clk 0:00:32.5]} 40. Rc5 {[%clk 0:00:24.7]} 40...
h5 {[%clk 0:00:21]} 41. a7 {[%clk 0:00:24]} 41... Qxc4+ {[%clk 0:00:13.4]} 42.
Rxc4 {[%clk 0:00:25.1]} 42... Ra8 {[%clk 0:00:15.3]} 43. Rc7 {[%clk 0:00:25.8]}
43... Bf8 {[%clk 0:00:15.6]} 44. Rb7 {[%clk 0:00:26.8]} 44... Bd6 {[%clk
0:00:17]} 45. Nc4 {[%clk 0:00:27.3]} 1-0

[Event "*** Qualifier 3: Titled Tuesday 3|2 Blitz"]
[Site "Chess.com"]
[Date "2017.04.18"]
[Round "5"]
[White "biostatistician"]
[Black "RobertoJBM"]
[Result "0-1"]
[WhiteElo "2462"]
[BlackElo "2425"]
[TimeControl "180+2"]
[EndTime "14:07:39 PDT"]
[Termination "RobertoJBM won on time"]

1. d4 {[%clk 0:03:02]} 1... d5 {[%clk 0:02:54.5]} 2. Nf3 {[%clk 0:03:03.9]} 2...
c6 {[%clk 0:02:55.9]} 3. c4 {[%clk 0:03:05.8]} 3... Nf6 {[%clk 0:02:56.2]} 4.
cxd5 {[%clk 0:03:05.4]} 4... cxd5 {[%clk 0:02:56.9]} 5. Nc3 {[%clk 0:03:07.3]}
5... Nc6 {[%clk 0:02:51.8]} 6. Bf4 {[%clk 0:03:08.7]} 6... Qb6 {[%clk
0:02:51.9]} 7. Na4 {[%clk 0:03:08.9]} 7... Qa5+ {[%clk 0:02:52.4]} 8. Bd2 {[%clk
0:03:09.9]} 8... Qc7 {[%clk 0:02:53.2]} 9. Rc1 {[%clk 0:03:10.4]} 9... e6 {[%clk
0:02:52.4]} 10. e3 {[%clk 0:03:11]} 10... Bd6 {[%clk 0:02:52.9]} 11. Bb5 {[%clk
0:03:11.8]} 11... O-O {[%clk 0:02:52.5]} 12. O-O {[%clk 0:03:12]} 12... Bd7
{[%clk 0:02:53.3]} 13. Nc5 {[%clk 0:03:11.8]} 13... Rfc8 {[%clk 0:02:52.2]} 14.
Qa4 {[%clk 0:03:08.8]} 14... Be8 {[%clk 0:02:52]} 15. Qb3 {[%clk 0:02:12.9]}
15... a6 {[%clk 0:02:37.7]} 16. Bxc6 {[%clk 0:01:50.8]} 16... Bxc6 {[%clk
0:02:35.9]} 17. Na4 {[%clk 0:01:51.5]} 17... Bxa4 {[%clk 0:02:29.7]} 18. Qxa4
{[%clk 0:01:52.2]} 18... Qd7 {[%clk 0:02:30.2]} 19. Qb3 {[%clk 0:01:47.8]} 19...
Ne4 {[%clk 0:01:47.4]} 20. Bb4 {[%clk 0:01:44.3]} 20... Qb5 {[%clk 0:01:43.2]}
21. Bxd6 {[%clk 0:01:43]} 21... Qxb3 {[%clk 0:01:44]} 22. axb3 {[%clk
0:01:44.5]} 22... Nxd6 {[%clk 0:01:44.7]} 23. Ne5 {[%clk 0:01:44.1]} 23... Rxc1
{[%clk 0:01:41.8]} 24. Rxc1 {[%clk 0:01:43.9]} 24... Rc8 {[%clk 0:01:43.7]} 25.
Rxc8+ {[%clk 0:01:43.3]} 25... Nxc8 {[%clk 0:01:45.6]} 26. f3 {[%clk 0:01:44]}
26... Kf8 {[%clk 0:01:44.9]} 27. Kf2 {[%clk 0:01:45.2]} 27... Ke7 {[%clk
0:01:45.6]} 28. g4 {[%clk 0:01:46.6]} 28... f6 {[%clk 0:01:46.3]} 29. Nd3 {[%clk
0:01:47.3]} 29... b6 {[%clk 0:01:40.3]} 30. h4 {[%clk 0:01:46.3]} 30... Kd6
{[%clk 0:01:39.7]} 31. h5 {[%clk 0:01:46.6]} 31... Ne7 {[%clk 0:01:38.5]} 32.
Ke2 {[%clk 0:01:44]} 32... Nc6 {[%clk 0:01:37.4]} 33. Kd2 {[%clk 0:01:44.3]}
33... e5 {[%clk 0:01:37.1]} 34. Kc3 {[%clk 0:01:42.6]} 34... exd4+ {[%clk
0:01:36.4]} 35. exd4 {[%clk 0:01:44.5]} 35... Na7 {[%clk 0:01:37.9]} 36. Nf4
{[%clk 0:01:24.3]} 36... Nb5+ {[%clk 0:01:35.1]} 37. Kd3 {[%clk 0:01:25.1]}
37... Nc7 {[%clk 0:01:34]} 38. Nh3 {[%clk 0:01:13]} 38... Ne6 {[%clk 0:01:34]}
39. f4 {[%clk 0:01:14]} 39... Kc6 {[%clk 0:01:25.7]} 40. g5 {[%clk 0:01:07.9]}
40... f5 {[%clk 0:01:20.6]} 41. h6 {[%clk 0:00:41.6]} 41... g6 {[%clk 0:01:19]}
42. Ke3 {[%clk 0:00:39.7]} 42... Kb5 {[%clk 0:01:16.3]} 43. Nf2 {[%clk
0:00:32.9]} 43... Kb4 {[%clk 0:01:17.4]} 44. Nd3+ {[%clk 0:00:34.1]} 44... Kxb3
{[%clk 0:01:18.3]} 45. Ne5 {[%clk 0:00:36]} 45... Nf8 {[%clk 0:01:18.3]} 46. Nd7
{[%clk 0:00:34.2]} 46... Nxd7 {[%clk 0:00:50.6]} 0-1